[Event "*** SCC Grand Prix: Titled Tuesday Blitz"]
[Site "Chess.com"]
[Date "2020.09.29"]
[Round "1"]
[White "Unknown_IM"]
[Black "sokidze"]
[Result "0-1"]
[WhiteElo "2297"]
[BlackElo "2608"]
[TimeControl "180+1"]
[EndTime "10:09:17 PDT"]
[Termination "sokidze won by resignation"]

1. e4 {[%clk 0:02:57]} 1... c5 {[%clk 0:02:58.4]} 2. Nf3 {[%clk 0:02:56]} 2...
Nc6 {[%clk 0:02:58.3]} 3. c3 {[%clk 0:02:50.8]} 3... Nf6 {[%clk 0:02:53.8]} 4.
e5 {[%clk 0:02:44.4]} 4... Nd5 {[%clk 0:02:52.5]} 5. d4 {[%clk 0:02:43.8]} 5...
cxd4 {[%clk 0:02:52.5]} 6. cxd4 {[%clk 0:02:44.7]} 6... d6 {[%clk 0:02:52.6]} 7.
a3 {[%clk 0:02:43.4]} 7... Bg4 {[%clk 0:02:38.5]} 8. exd6 {[%clk 0:02:10.3]}
8... Qxd6 {[%clk 0:02:36.7]} 9. Nc3 {[%clk 0:02:07.9]} 9... Nxc3 {[%clk
0:02:15.5]} 10. bxc3 {[%clk 0:02:07.5]} 10... e6 {[%clk 0:02:13.6]} 11. Be2
{[%clk 0:02:04.8]} 11... Be7 {[%clk 0:02:13.1]} 12. O-O {[%clk 0:02:04.2]} 12...
O-O {[%clk 0:02:12.8]} 13. a4 {[%clk 0:02:03.2]} 13... Rac8 {[%clk 0:02:06.7]}
14. Ba3 {[%clk 0:02:02.8]} 14... Qd7 {[%clk 0:02:05.4]} 15. Bxe7 {[%clk
0:02:03]} 15... Qxe7 {[%clk 0:02:05.6]} 16. Bd3 {[%clk 0:01:58]} 16... Rfd8
{[%clk 0:01:54.7]} 17. Qe2 {[%clk 0:01:46.8]} 17... Qf6 {[%clk 0:01:47.1]} 18.
Qe4 {[%clk 0:01:27]} 18... Bxf3 {[%clk 0:01:33.2]} 19. Qxh7+ {[%clk 0:01:20.2]}
19... Kf8 {[%clk 0:01:33.1]} 20. gxf3 {[%clk 0:01:20.1]} 20... Ke7 {[%clk
0:01:06.8]} 21. Qe4 {[%clk 0:01:15.1]} 21... Rh8 {[%clk 0:01:03.9]} 22. Kg2
{[%clk 0:01:06.5]} 22... Rh4 {[%clk 0:00:53.7]} 23. Qe3 {[%clk 0:01:01.5]} 23...
Rch8 {[%clk 0:00:46]} 24. Rh1 {[%clk 0:01:00.6]} 24... Rh3 {[%clk 0:00:41.6]}
25. Be4 {[%clk 0:00:51.3]} 25... Qh4 {[%clk 0:00:39]} 26. Rag1 {[%clk
0:00:46.1]} 26... Rxh2+ {[%clk 0:00:34.6]} 27. Rxh2 {[%clk 0:00:45.9]} 27...
Qxh2+ {[%clk 0:00:35.5]} 28. Kf1 {[%clk 0:00:46.4]} 28... g6 {[%clk 0:00:28.4]}
29. Qg5+ {[%clk 0:00:27]} 29... Kf8 {[%clk 0:00:28.7]} 30. Qf6 {[%clk
0:00:24.7]} 30... Qh4 {[%clk 0:00:17.1]} 31. Rxg6 {[%clk 0:00:17.4]} 31... Qxf6
{[%clk 0:00:16.8]} 32. Rxf6 {[%clk 0:00:18.3]} 32... Ke7 {[%clk 0:00:17.7]} 33.
Rf4 {[%clk 0:00:18.3]} 33... Na5 {[%clk 0:00:18.1]} 34. Bd3 {[%clk 0:00:13.6]}
34... Rc8 {[%clk 0:00:14.1]} 35. Ke2 {[%clk 0:00:13.3]} 35... Rxc3 {[%clk
0:00:13.6]} 36. Rh4 {[%clk 0:00:13.5]} 36... Ra3 {[%clk 0:00:10.8]} 37. d5
{[%clk 0:00:10.7]} 37... exd5 {[%clk 0:00:10.1]} 38. Rd4 {[%clk 0:00:10.6]}
38... Ke6 {[%clk 0:00:09]} 39. f4 {[%clk 0:00:10.2]} 39... Ra2+ {[%clk
0:00:07.8]} 40. Ke3 {[%clk 0:00:09.8]} 40... Nc6 {[%clk 0:00:08.4]} 41. f5+
{[%clk 0:00:10.2]} 41... Kd6 {[%clk 0:00:07.5]} 42. Rh4 {[%clk 0:00:10.5]} 42...
d4+ {[%clk 0:00:07.7]} 43. Ke4 {[%clk 0:00:10.1]} 43... Rxf2 {[%clk 0:00:07.5]}
44. Rh6+ {[%clk 0:00:10.4]} 44... Ke7 {[%clk 0:00:06.9]} 45. Bb5 {[%clk
0:00:10.2]} 45... Na5 {[%clk 0:00:02.9]} 46. Kxd4 {[%clk 0:00:09.9]} 46... a6
{[%clk 0:00:03.6]} 47. Bd3 {[%clk 0:00:09.7]} 47... Ra2 {[%clk 0:00:03.4]} 48.
Rb6 {[%clk 0:00:07.6]} 48... Rxa4+ {[%clk 0:00:03.3]} 49. Ke5 {[%clk 0:00:08.2]}
49... Nc6+ {[%clk 0:00:02.6]} 50. Kd5 {[%clk 0:00:08.1]} 50... Rd4+ {[%clk
0:00:03.3]} 51. Kc5 {[%clk 0:00:08.7]} 51... Rxd3 {[%clk 0:00:04.2]} 52. Rxb7+
{[%clk 0:00:09.3]} 52... Rd7 {[%clk 0:00:04.1]} 53. f6+ {[%clk 0:00:07.8]} 53...
Ke6 {[%clk 0:00:04.6]} 54. Rb6 {[%clk 0:00:07.7]} 54... Rd6 {[%clk 0:00:03.7]}
55. Rxa6 {[%clk 0:00:07.3]} 55... Ke5 {[%clk 0:00:03.5]} 56. Ra1 {[%clk
0:00:05.3]} 56... Re6 {[%clk 0:00:03.3]} 57. Rf1 {[%clk 0:00:05.7]} 57... Rxf6
{[%clk 0:00:02.9]} 58. Re1+ {[%clk 0:00:05.9]} 58... Kf5 {[%clk 0:00:03.4]} 59.
Rf1+ {[%clk 0:00:06.3]} 59... Kg6 {[%clk 0:00:04.1]} 60. Rg1+ {[%clk 0:00:06.8]}
60... Kh5 {[%clk 0:00:04.7]} 61. Rh1+ {[%clk 0:00:07.3]} 61... Kg4 {[%clk
0:00:05.3]} 62. Rg1+ {[%clk 0:00:07.9]} 62... Kh3 {[%clk 0:00:05.9]} 63. Rh1+
{[%clk 0:00:08.6]} 63... Kg2 {[%clk 0:00:06.4]} 64. Rh8 {[%clk 0:00:08.5]} 64...
Ne5 {[%clk 0:00:06.6]} 65. Rg8+ {[%clk 0:00:08.8]} 65... Ng6 {[%clk 0:00:06.8]}
66. Kd5 {[%clk 0:00:09.3]} 66... Kg3 {[%clk 0:00:07.2]} 67. Rg7 {[%clk
0:00:09.6]} 67... Kg4 {[%clk 0:00:07.5]} 68. Rg8 {[%clk 0:00:10.1]} 68... Kg5
{[%clk 0:00:07.7]} 69. Ke4 {[%clk 0:00:09.8]} 69... Rf1 {[%clk 0:00:07.7]} 70.
Kd5 {[%clk 0:00:09.6]} 70... f5 {[%clk 0:00:08.2]} 71. Rg7 {[%clk 0:00:09.4]}
71... Kf6 {[%clk 0:00:08.4]} 72. Ra7 {[%clk 0:00:09.1]} 72... f4 {[%clk
0:00:08.8]} 73. Ra6+ {[%clk 0:00:10]} 73... Kf5 {[%clk 0:00:08.8]} 74. Kd4
{[%clk 0:00:10.5]} 74... Rd1+ {[%clk 0:00:08.5]} 75. Kc3 {[%clk 0:00:10.2]}
75... f3 {[%clk 0:00:09.1]} 76. Ra2 {[%clk 0:00:07]} 76... Nf4 {[%clk
0:00:08.2]} 77. Rf2 {[%clk 0:00:06.8]} 77... Ke4 {[%clk 0:00:08.7]} 78. Rh2
{[%clk 0:00:06.5]} 78... Ke3 {[%clk 0:00:08.9]} 79. Kc2 {[%clk 0:00:06.6]} 79...
Rd8 {[%clk 0:00:09.1]} 80. Kc3 {[%clk 0:00:04.4]} 80... f2 {[%clk 0:00:09.3]}
81. Rh1 {[%clk 0:00:05.3]} 81... Ke2 {[%clk 0:00:09.3]} 0-1

[Event "*** SCC Grand Prix: Titled Tuesday Blitz"]
[Site "Chess.com"]
[Date "2020.09.29"]
[Round "1"]
[White "TrimitziosP7"]
[Black "Makswolf200817"]
[Result "1/2-1/2"]
[WhiteElo "2827"]
[BlackElo "2424"]
[TimeControl "180+1"]
[EndTime "10:09:20 PDT"]
[Termination "Game drawn by repetition"]

1. e4 {[%clk 0:02:59.8]} 1... e6 {[%clk 0:02:57.7]} 2. Nc3 {[%clk 0:02:58.2]}
2... d5 {[%clk 0:02:57.8]} 3. d4 {[%clk 0:02:56.3]} 3... Bb4 {[%clk 0:02:57.1]}
4. e5 {[%clk 0:02:55.6]} 4... c5 {[%clk 0:02:56.6]} 5. Qg4 {[%clk 0:02:51.6]}
5... cxd4 {[%clk 0:02:41.4]} 6. Qxd4 {[%clk 0:02:42.5]} 6... Nc6 {[%clk
0:02:40.6]} 7. Bb5 {[%clk 0:02:39.6]} 7... Qa5 {[%clk 0:02:39.2]} 8. Bd2 {[%clk
0:02:34.6]} 8... Bd7 {[%clk 0:02:19.5]} 9. Bxc6 {[%clk 0:02:29]} 9... bxc6
{[%clk 0:02:19]} 10. Qg4 {[%clk 0:02:24]} 10... Kf8 {[%clk 0:02:15.6]} 11. Nge2
{[%clk 0:02:19.5]} 11... Ne7 {[%clk 0:02:14.6]} 12. a3 {[%clk 0:02:14.3]} 12...
Bxc3 {[%clk 0:02:13.5]} 13. Nxc3 {[%clk 0:02:09.4]} 13... Qb6 {[%clk 0:02:07.7]}
14. b4 {[%clk 0:02:04.8]} 14... h5 {[%clk 0:02:03.4]} 15. Qe2 {[%clk 0:02:00.4]}
15... Nf5 {[%clk 0:02:02.1]} 16. O-O {[%clk 0:01:50.3]} 16... h4 {[%clk
0:01:58.9]} 17. Na4 {[%clk 0:01:45.1]} 17... Qb5 {[%clk 0:01:52.6]} 18. Qxb5
{[%clk 0:01:43.6]} 18... cxb5 {[%clk 0:01:53]} 19. Nc5 {[%clk 0:01:44.5]} 19...
Bc6 {[%clk 0:01:53.5]} 20. h3 {[%clk 0:01:37.7]} 20... d4 {[%clk 0:01:50.9]} 21.
c3 {[%clk 0:01:31.9]} 21... Ke7 {[%clk 0:01:42.8]} 22. cxd4 {[%clk 0:01:23.8]}
22... Nxd4 {[%clk 0:01:43]} 23. Rad1 {[%clk 0:01:19.4]} 23... Rad8 {[%clk
0:01:39.1]} 24. Bg5+ {[%clk 0:01:09.1]} 24... f6 {[%clk 0:01:38.7]} 25. Be3
{[%clk 0:01:09.9]} 25... Nf5 {[%clk 0:01:34.7]} 26. Bc1 {[%clk 0:01:06]} 26...
Kf7 {[%clk 0:01:23.7]} 27. Bb2 {[%clk 0:00:57.8]} 27... Rd5 {[%clk 0:01:18.4]}
28. Rxd5 {[%clk 0:00:51.8]} 28... Bxd5 {[%clk 0:01:19.3]} 29. Rc1 {[%clk
0:00:52.2]} 29... Rc8 {[%clk 0:01:18.2]} 30. f3 {[%clk 0:00:48.1]} 30... Bc4
{[%clk 0:01:11.8]} 31. Ne4 {[%clk 0:00:43.8]} 31... fxe5 {[%clk 0:01:02.4]} 32.
Bxe5 {[%clk 0:00:44.7]} 32... Rd8 {[%clk 0:01:01.9]} 33. a4 {[%clk 0:00:40.2]}
33... a6 {[%clk 0:00:58.3]} 34. axb5 {[%clk 0:00:32.2]} 34... axb5 {[%clk
0:00:59.2]} 35. Ra1 {[%clk 0:00:30.3]} 35... Kg6 {[%clk 0:00:57.7]} 36. Re1
{[%clk 0:00:24.3]} 36... Rd5 {[%clk 0:00:55.6]} 37. Nc5 {[%clk 0:00:22]} 37...
Rd2 {[%clk 0:00:52.3]} 38. Nxe6 {[%clk 0:00:17.4]} 38... Bxe6 {[%clk 0:00:50.7]}
39. Bf4 {[%clk 0:00:17.8]} 39... Rd4 {[%clk 0:00:41.7]} 40. Rxe6+ {[%clk
0:00:17.5]} 40... Kf7 {[%clk 0:00:42.1]} 41. Re4 {[%clk 0:00:17]} 41... Rd1+
{[%clk 0:00:35.5]} 42. Kf2 {[%clk 0:00:16.3]} 42... Nd4 {[%clk 0:00:36.4]} 43.
Bg5 {[%clk 0:00:12.4]} 43... Nc6 {[%clk 0:00:30.6]} 44. Bxh4 {[%clk 0:00:12.2]}
44... Rb1 {[%clk 0:00:30.3]} 45. Bg3 {[%clk 0:00:10]} 45... Nxb4 {[%clk
0:00:30.4]} 46. Bd6 {[%clk 0:00:09.7]} 46... Nd5 {[%clk 0:00:30.7]} 47. Rd4
{[%clk 0:00:09.6]} 47... Nf6 {[%clk 0:00:30.6]} 48. Rb4 {[%clk 0:00:09.5]} 48...
Rxb4 {[%clk 0:00:29.3]} 49. Bxb4 {[%clk 0:00:10.4]} 49... Nd5 {[%clk 0:00:30.2]}
50. Bd2 {[%clk 0:00:10.6]} 50... b4 {[%clk 0:00:30.7]} 51. Ke2 {[%clk
0:00:11.5]} 51... Ke6 {[%clk 0:00:29.7]} 52. Kd3 {[%clk 0:00:12.1]} 52... b3
{[%clk 0:00:25.3]} 53. Bc1 {[%clk 0:00:06]} 53... Kf5 {[%clk 0:00:21.3]} 54. g3
{[%clk 0:00:05.5]} 54... g5 {[%clk 0:00:20.3]} 55. Kc4 {[%clk 0:00:05.6]} 55...
b2 {[%clk 0:00:18.8]} 56. Bxb2 {[%clk 0:00:05.3]} 56... Ne3+ {[%clk 0:00:19.7]}
57. Kd3 {[%clk 0:00:05.5]} 57... Nf1 {[%clk 0:00:20.1]} 58. g4+ {[%clk
0:00:05.8]} 58... Kf4 {[%clk 0:00:20.5]} 59. Ke2 {[%clk 0:00:06.4]} 59... Nh2
{[%clk 0:00:18.7]} 60. Bc1+ {[%clk 0:00:06.3]} 60... Kg3 {[%clk 0:00:19.1]} 61.
Bxg5 {[%clk 0:00:07.2]} 61... Nxf3 {[%clk 0:00:19.5]} 62. Be3 {[%clk 0:00:06.3]}
62... Ne5 {[%clk 0:00:18]} 63. g5 {[%clk 0:00:04.2]} 63... Kxh3 {[%clk
0:00:17.9]} 64. Bd4 {[%clk 0:00:04.7]} 64... Ng6 {[%clk 0:00:18.1]} 65. Ke3
{[%clk 0:00:04.3]} 65... Kh4 {[%clk 0:00:18.6]} 66. Bf6 {[%clk 0:00:05.2]} 66...
Kg4 {[%clk 0:00:18.7]} 67. Ke4 {[%clk 0:00:05.6]} 67... Nh4 {[%clk 0:00:18.7]}
68. Ke5 {[%clk 0:00:05.4]} 68... Ng6+ {[%clk 0:00:17.7]} 69. Ke6 {[%clk
0:00:05.3]} 69... Kh5 {[%clk 0:00:18.1]} 70. Kf5 {[%clk 0:00:05.8]} 70... Nh4+
{[%clk 0:00:17.7]} 71. Ke6 {[%clk 0:00:06.3]} 71... Ng6 {[%clk 0:00:18.6]} 72.
Kf7 {[%clk 0:00:07.2]} 72... Nh4 {[%clk 0:00:18.9]} 73. Bd8 {[%clk 0:00:07.4]}
73... Ng6 {[%clk 0:00:19.8]} 74. Kf6 {[%clk 0:00:07.7]} 74... Nh4 {[%clk
0:00:20.7]} 75. Ba5 {[%clk 0:00:07]} 75... Ng6 {[%clk 0:00:21.6]} 76. Be1 {[%clk
0:00:07]} 76... Nf4 {[%clk 0:00:21.7]} 77. Bd2 {[%clk 0:00:05.9]} 77... Ng6
{[%clk 0:00:21.9]} 78. Be3 {[%clk 0:00:06.3]} 78... Nh4 {[%clk 0:00:22]} 79. Bf2
{[%clk 0:00:06.4]} 79... Ng6 {[%clk 0:00:22.3]} 80. Bg3 {[%clk 0:00:06.8]} 80...
Nh8 {[%clk 0:00:22.5]} 81. Bf4 {[%clk 0:00:05.4]} 81... Ng6 {[%clk 0:00:23.4]}
82. Bd2 {[%clk 0:00:04.2]} 82... Nh4 {[%clk 0:00:23.1]} 83. Be1 {[%clk
0:00:03.6]} 83... Ng6 {[%clk 0:00:23.4]} 84. Bg3 {[%clk 0:00:02.9]} 84... Nh8
{[%clk 0:00:23.4]} 85. Bc7 {[%clk 0:00:02.7]} 85... Ng6 {[%clk 0:00:23.6]} 86.
Kf5 {[%clk 0:00:02.9]} 86... Nh4+ {[%clk 0:00:23.5]} 87. Kf6 {[%clk 0:00:02.4]}
87... Ng6 {[%clk 0:00:24.4]} 88. Ba5 {[%clk 0:00:02.7]} 88... Nh4 {[%clk
0:00:24.5]} 89. Be1 {[%clk 0:00:02.5]} 89... Ng6 {[%clk 0:00:24.8]} 90. Bg3
{[%clk 0:00:02.9]} 1/2-1/2

[Event "*** SCC Grand Prix: Titled Tuesday Blitz"]
[Site "Chess.com"]
[Date "2020.09.29"]
[Round "1"]
[White "johnathan113"]
[Black "TC2304"]
[Result "1/2-1/2"]
[WhiteElo "2577"]
[BlackElo "2290"]
[TimeControl "180+1"]
[EndTime "10:09:25 PDT"]
[Termination "Game drawn - insufficient material"]

1. d4 {[%clk 0:02:53.5]} 1... Nf6 {[%clk 0:02:59.8]} 2. Nc3 {[%clk 0:02:52.4]}
2... d5 {[%clk 0:02:59.2]} 3. Bf4 {[%clk 0:02:51.8]} 3... a6 {[%clk 0:02:55.7]}
4. e3 {[%clk 0:02:51.8]} 4... c5 {[%clk 0:02:55.2]} 5. dxc5 {[%clk 0:02:50.3]}
5... e6 {[%clk 0:02:54.5]} 6. b4 {[%clk 0:02:49.2]} 6... b6 {[%clk 0:02:42.9]}
7. Na4 {[%clk 0:01:55.5]} 7... bxc5 {[%clk 0:02:37.7]} 8. Nxc5 {[%clk
0:01:56.4]} 8... Bxc5 {[%clk 0:02:19.1]} 9. bxc5 {[%clk 0:01:57.3]} 9... Ne4
{[%clk 0:02:09.7]} 10. Qd4 {[%clk 0:01:45.9]} 10... Qa5+ {[%clk 0:01:53]} 11. c3
{[%clk 0:01:38.9]} 11... f6 {[%clk 0:01:26.4]} 12. Qb4 {[%clk 0:01:35.2]} 12...
Nc6 {[%clk 0:01:13.7]} 13. Qxa5 {[%clk 0:01:33.2]} 13... Nxa5 {[%clk 0:01:14.6]}
14. Nf3 {[%clk 0:01:24]} 14... e5 {[%clk 0:01:06.1]} 15. Bg3 {[%clk 0:01:24.3]}
15... Be6 {[%clk 0:01:04.8]} 16. Rb1 {[%clk 0:01:17.4]} 16... O-O {[%clk
0:00:58.8]} 17. Rb6 {[%clk 0:01:16.1]} 17... Bf7 {[%clk 0:00:34.7]} 18. Bxa6
{[%clk 0:01:11.6]} 18... Nxc5 {[%clk 0:00:29.8]} 19. Bb5 {[%clk 0:01:11.8]}
19... Rfb8 {[%clk 0:00:27.3]} 20. Rxb8+ {[%clk 0:01:12]} 20... Rxb8 {[%clk
0:00:28.2]} 21. a4 {[%clk 0:01:12.5]} 21... Be8 {[%clk 0:00:23.5]} 22. O-O
{[%clk 0:00:46.6]} 22... Bxb5 {[%clk 0:00:18.9]} 23. Rb1 {[%clk 0:00:45.7]}
23... Nab3 {[%clk 0:00:16.3]} 24. axb5 {[%clk 0:00:46.1]} 24... Rxb5 {[%clk
0:00:16.7]} 25. Nd2 {[%clk 0:00:46.1]} 25... Kf7 {[%clk 0:00:15.9]} 26. c4
{[%clk 0:00:46]} 26... dxc4 {[%clk 0:00:15.7]} 27. Nxc4 {[%clk 0:00:46.9]} 27...
Rb4 {[%clk 0:00:15.1]} 28. Nd2 {[%clk 0:00:42.4]} 28... Rb7 {[%clk 0:00:13.6]}
29. Nc4 {[%clk 0:00:41.1]} 29... Rb4 {[%clk 0:00:13.3]} 30. Na5 {[%clk
0:00:39.5]} 30... Rb5 {[%clk 0:00:12]} 31. Nxb3 {[%clk 0:00:37]} 31... Rxb3
{[%clk 0:00:11.9]} 32. Rd1 {[%clk 0:00:36.9]} 32... Rd3 {[%clk 0:00:11.4]} 33.
Rc1 {[%clk 0:00:35.8]} 33... Nb3 {[%clk 0:00:11.1]} 34. Rb1 {[%clk 0:00:35.6]}
34... Kg6 {[%clk 0:00:09.3]} 35. h4 {[%clk 0:00:30.8]} 35... Nd2 {[%clk
0:00:08.6]} 36. Rb7 {[%clk 0:00:26.6]} 36... Ne4 {[%clk 0:00:07.6]} 37. Kh2
{[%clk 0:00:26.8]} 37... Nxg3 {[%clk 0:00:07.6]} 38. Kxg3 {[%clk 0:00:27.7]}
38... h5 {[%clk 0:00:07.6]} 39. Rb4 {[%clk 0:00:26.1]} 39... Rd2 {[%clk
0:00:06.9]} 40. Ra4 {[%clk 0:00:25.6]} 40... Rc2 {[%clk 0:00:07.1]} 41. Ra5
{[%clk 0:00:26]} 41... Rd2 {[%clk 0:00:07.6]} 42. Kf3 {[%clk 0:00:26.1]} 42...
Rc2 {[%clk 0:00:08]} 43. g3 {[%clk 0:00:26.5]} 43... Rc4 {[%clk 0:00:08.2]} 44.
Ra3 {[%clk 0:00:26.4]} 44... Rb4 {[%clk 0:00:08.3]} 45. Rc3 {[%clk 0:00:25.8]}
45... Ra4 {[%clk 0:00:08.3]} 46. Kg2 {[%clk 0:00:26.3]} 46... Rb4 {[%clk
0:00:08.8]} 47. f4 {[%clk 0:00:26.8]} 47... exf4 {[%clk 0:00:08.5]} 48. gxf4
{[%clk 0:00:26.5]} 48... Rb2+ {[%clk 0:00:08.1]} 49. Kf3 {[%clk 0:00:27]} 49...
Rb1 {[%clk 0:00:09]} 50. Rc2 {[%clk 0:00:26.7]} 50... Rf1+ {[%clk 0:00:09.2]}
51. Ke4 {[%clk 0:00:27.3]} 51... Rh1 {[%clk 0:00:09.5]} 52. Rg2+ {[%clk
0:00:27.8]} 52... Kf7 {[%clk 0:00:09.7]} 53. Kf3 {[%clk 0:00:20.5]} 53... Rh3+
{[%clk 0:00:08]} 54. Ke4 {[%clk 0:00:18.4]} 54... Rxh4 {[%clk 0:00:08.4]} 55.
Kd5 {[%clk 0:00:18.8]} 55... Rg4 {[%clk 0:00:08.1]} 56. Rb2 {[%clk 0:00:18.3]}
56... Rg3 {[%clk 0:00:08.2]} 57. e4 {[%clk 0:00:18]} 57... Rd3+ {[%clk
0:00:08.5]} 58. Kc4 {[%clk 0:00:18.7]} 58... Re3 {[%clk 0:00:08.2]} 59. Kd4
{[%clk 0:00:18.7]} 59... Re1 {[%clk 0:00:08.7]} 60. e5 {[%clk 0:00:18.7]} 60...
fxe5+ {[%clk 0:00:08.4]} 61. fxe5 {[%clk 0:00:19.5]} 61... Rd1+ {[%clk
0:00:08.9]} 62. Ke4 {[%clk 0:00:20.2]} 62... Rg1 {[%clk 0:00:08.4]} 63. Rb7+
{[%clk 0:00:19.5]} 63... Ke6 {[%clk 0:00:08.2]} 64. Rb6+ {[%clk 0:00:19.4]}
64... Ke7 {[%clk 0:00:08.7]} 65. Rb7+ {[%clk 0:00:20]} 65... Ke6 {[%clk
0:00:08]} 66. Rb6+ {[%clk 0:00:20.5]} 66... Kf7 {[%clk 0:00:08.5]} 67. Kf5
{[%clk 0:00:19.4]} 67... Rf1+ {[%clk 0:00:07.8]} 68. Kg5 {[%clk 0:00:19.9]}
68... Re1 {[%clk 0:00:08.5]} 69. Kf5 {[%clk 0:00:14]} 69... g6+ {[%clk 0:00:05]}
70. Kf4 {[%clk 0:00:14.5]} 70... h4 {[%clk 0:00:04.6]} 71. Rb7+ {[%clk
0:00:14.7]} 71... Ke6 {[%clk 0:00:04.9]} 72. Rb6+ {[%clk 0:00:09.6]} 72... Kf7
{[%clk 0:00:05.3]} 73. Rb7+ {[%clk 0:00:08.1]} 73... Ke8 {[%clk 0:00:04.8]} 74.
Kg5 {[%clk 0:00:06.3]} 74... h3 {[%clk 0:00:03.8]} 75. Rh7 {[%clk 0:00:03.2]}
75... Rxe5+ {[%clk 0:00:03.5]} 76. Kxg6 {[%clk 0:00:03.7]} 76... Re3 {[%clk
0:00:04.1]} 77. Kg5 {[%clk 0:00:04]} 77... Kd8 {[%clk 0:00:03.6]} 78. Kf4 {[%clk
0:00:04.2]} 78... Rb3 {[%clk 0:00:03.3]} 79. Kg4 {[%clk 0:00:04.7]} 79... Kc8
{[%clk 0:00:03.1]} 80. Kf4 {[%clk 0:00:03.3]} 80... Kd8 {[%clk 0:00:03.4]} 81.
Kg4 {[%clk 0:00:03.8]} 81... Kc8 {[%clk 0:00:04]} 82. Rh8+ {[%clk 0:00:04.5]}
82... Kc7 {[%clk 0:00:04.1]} 83. Rxh3 {[%clk 0:00:05.4]} 83... Rxh3 {[%clk
0:00:03.8]} 84. Kxh3 {[%clk 0:00:06.3]} 1/2-1/2

[Event "*** SCC Grand Prix: Titled Tuesday Blitz"]
[Site "Chess.com"]
[Date "2020.09.29"]
[Round "2"]
[White "GjakanTati"]
[Black "FMalexhdez"]
[Result "1-0"]
[WhiteElo "2631"]
[BlackElo "2226"]
[TimeControl "180+1"]
[EndTime "10:11:47 PDT"]
[Termination "GjakanTati won by resignation"]

1. d4 {[%clk 0:03:00.9]} 1... Nf6 {[%clk 0:02:59.2]} 2. c4 {[%clk 0:02:57.9]}
2... e6 {[%clk 0:02:59.4]} 3. Nf3 {[%clk 0:02:57.6]} 3... Bb4+ {[%clk
0:02:59.4]} 4. Bd2 {[%clk 0:02:57.5]} 4... a5 {[%clk 0:02:55.4]} 5. g3 {[%clk
0:02:54.6]} 5... Qe7 {[%clk 0:02:50.7]} 6. Bg2 {[%clk 0:02:54.4]} 6... d6 {[%clk
0:02:50]} 7. O-O {[%clk 0:02:54.1]} 7... Nbd7 {[%clk 0:02:48.1]} 8. Bc1 {[%clk
0:02:51.4]} 8... a4 {[%clk 0:02:06]} 9. a3 {[%clk 0:02:49.8]} 9... Ba5 {[%clk
0:02:05.4]} 10. Qxa4 {[%clk 0:02:49.9]} 10... Kf8 {[%clk 0:02:03.5]} 11. b4
{[%clk 0:02:45.9]} 11... Nb6 {[%clk 0:02:00.4]} 12. Qb3 {[%clk 0:02:45]} 1-0

[Event "*** SCC Grand Prix: Titled Tuesday Blitz"]
[Site "Chess.com"]
[Date "2020.09.29"]
[Round "2"]
[White "Jumbo"]
[Black "SRDR8290"]
[Result "1-0"]
[WhiteElo "2711"]
[BlackElo "2466"]
[TimeControl "180+1"]
[EndTime "10:12:04 PDT"]
[Termination "Jumbo won by resignation"]

1. e4 {[%clk 0:03:00.9]} 1... e6 {[%clk 0:02:59.9]} 2. d4 {[%clk 0:02:59.6]}
2... d5 {[%clk 0:03:00.5]} 3. Nd2 {[%clk 0:03:00.1]} 3... Ne7 {[%clk 0:02:56.6]}
4. e5 {[%clk 0:02:56.3]} 4... b6 {[%clk 0:02:55.1]} 5. c3 {[%clk 0:02:56.8]}
5... a5 {[%clk 0:02:44.8]} 6. h4 {[%clk 0:02:48]} 6... h6 {[%clk 0:02:44.6]} 7.
h5 {[%clk 0:02:45.8]} 7... Ba6 {[%clk 0:02:39.3]} 8. f4 {[%clk 0:02:45]} 8...
Bxf1 {[%clk 0:02:38.9]} 9. Kxf1 {[%clk 0:02:42.6]} 9... c5 {[%clk 0:02:39.2]}
10. Ndf3 {[%clk 0:02:42.2]} 10... Nc8 {[%clk 0:02:32.9]} 11. g4 {[%clk
0:02:41.6]} 11... Be7 {[%clk 0:02:33.3]} 12. f5 {[%clk 0:02:34.8]} 12... b5
{[%clk 0:02:27.4]} 13. Kg2 {[%clk 0:02:30]} 13... b4 {[%clk 0:02:26.3]} 14. Ne2
{[%clk 0:02:26.5]} 14... Nc6 {[%clk 0:02:26.1]} 15. Nf4 {[%clk 0:02:23.6]} 15...
Qd7 {[%clk 0:02:26.4]} 16. fxe6 {[%clk 0:02:21.2]} 16... fxe6 {[%clk 0:02:26.4]}
17. Ng6 {[%clk 0:02:21.7]} 17... Nd8 {[%clk 0:02:23.7]} 18. Nxh8 {[%clk
0:02:20.4]} 1-0

[Event "*** SCC Grand Prix: Titled Tuesday Blitz"]
[Site "Chess.com"]
[Date "2020.09.29"]
[Round "2"]
[White "gagtemp"]
[Black "RaunakSadhwani2005"]
[Result "0-1"]
[WhiteElo "1968"]
[BlackElo "2926"]
[TimeControl "180+1"]
[EndTime "10:12:09 PDT"]
[Termination "RaunakSadhwani2005 won by resignation"]

1. e4 {[%clk 0:02:38.5]} 1... g6 {[%clk 0:02:59.5]} 2. d4 {[%clk 0:02:37.6]}
2... Bg7 {[%clk 0:02:59.5]} 3. Nc3 {[%clk 0:02:33.8]} 3... d6 {[%clk 0:03:00]}
4. Nf3 {[%clk 0:02:29.4]} 4... a6 {[%clk 0:02:58.7]} 5. Be3 {[%clk 0:02:28]}
5... b5 {[%clk 0:02:58.9]} 6. Bd3 {[%clk 0:02:26]} 6... Bb7 {[%clk 0:02:59.2]}
7. Qd2 {[%clk 0:02:25.7]} 7... Nd7 {[%clk 0:02:57.8]} 8. O-O-O {[%clk
0:02:24.7]} 8... Nb6 {[%clk 0:02:55.5]} 9. h4 {[%clk 0:02:22.5]} 9... h6 {[%clk
0:02:49.8]} 10. g4 {[%clk 0:02:20.2]} 10... b4 {[%clk 0:02:49.4]} 11. Ne2 {[%clk
0:02:18.8]} 11... Nf6 {[%clk 0:02:49.4]} 12. Rhg1 {[%clk 0:01:50.7]} 12... Nxe4
{[%clk 0:02:47.4]} 13. g5 {[%clk 0:01:40]} 13... Nxd2 {[%clk 0:02:46.2]} 0-1

[Event "*** SCC Grand Prix: Titled Tuesday Blitz"]
[Site "Chess.com"]
[Date "2020.09.29"]
[Round "2"]
[White "LogoCzar"]
[Black "artichaud"]
[Result "1-0"]
[WhiteElo "2422"]
[BlackElo "2198"]
[TimeControl "180+1"]
[EndTime "10:12:23 PDT"]
[Termination "LogoCzar won by resignation"]

1. e4 {[%clk 0:03:00.9]} 1... d6 {[%clk 0:02:59.9]} 2. d4 {[%clk 0:02:57.7]}
2... Nf6 {[%clk 0:03:00]} 3. Nc3 {[%clk 0:02:57.7]} 3... c6 {[%clk 0:03:00.2]}
4. f4 {[%clk 0:02:57.6]} 4... Qa5 {[%clk 0:02:59.6]} 5. e5 {[%clk 0:02:57.8]}
5... Ne4 {[%clk 0:02:58.9]} 6. Nf3 {[%clk 0:02:56.6]} 6... Bg4 {[%clk
0:02:53.1]} 7. h3 {[%clk 0:02:56.3]} 7... Nxc3 {[%clk 0:02:47.2]} 8. bxc3 {[%clk
0:02:55.9]} 8... Qxc3+ {[%clk 0:02:41.5]} 9. Bd2 {[%clk 0:02:55.8]} 9... Bxf3
{[%clk 0:02:41.1]} 10. Qb1 {[%clk 0:02:55.8]} 10... Qxd4 {[%clk 0:02:35.1]} 11.
Qxb7 {[%clk 0:02:54.6]} 11... Qxa1+ {[%clk 0:02:31]} 12. Kf2 {[%clk 0:02:54.2]}
12... f5 {[%clk 0:01:39.5]} 13. e6 {[%clk 0:02:50.2]} 13... Kd8 {[%clk
0:01:28.2]} 14. Ba5+ {[%clk 0:02:47.4]} 1-0